[Event "*** MasterClass Titled Tuesday Blitz"]
[Site "Chess.com"]
[Date "2017.07.04"]
[Round "9"]
[White "rasmussvane"]
[Black "Indianlad"]
[Result "0-1"]
[WhiteElo "2525"]
[BlackElo "2530"]
[TimeControl "180+2"]
[EndTime "15:05:40 PDT"]
[Termination "Indianlad won by resignation"]

1. Nf3 {[%clk 0:03:01.9]} 1... Nf6 {[%clk 0:03:00.2]} 2. c4 {[%clk 0:03:03]}
2... g6 {[%clk 0:02:59.6]} 3. Nc3 {[%clk 0:03:04.1]} 3... Bg7 {[%clk 0:02:59.8]}
4. e4 {[%clk 0:03:04.7]} 4... O-O {[%clk 0:03:01.7]} 5. d4 {[%clk 0:03:05.8]}
5... c5 {[%clk 0:03:01.7]} 6. Be2 {[%clk 0:03:06.2]} 6... d6 {[%clk 0:03:00.1]}
7. O-O {[%clk 0:03:05.9]} 7... cxd4 {[%clk 0:02:58.8]} 8. Nxd4 {[%clk
0:03:07.1]} 8... Nc6 {[%clk 0:02:47.6]} 9. Be3 {[%clk 0:03:08.4]} 9... Nxd4
{[%clk 0:02:46.1]} 10. Bxd4 {[%clk 0:03:09.4]} 10... Bd7 {[%clk 0:02:48]} 11. b4
{[%clk 0:03:09.1]} 11... a5 {[%clk 0:02:40]} 12. b5 {[%clk 0:03:02.9]} 12... Be6
{[%clk 0:02:41]} 13. Rc1 {[%clk 0:02:09.1]} 13... Rc8 {[%clk 0:02:39.6]} 14.
Bxf6 {[%clk 0:00:55.3]} 14... Bxf6 {[%clk 0:02:39.7]} 15. Nd5 {[%clk 0:00:56.6]}
15... Bxd5 {[%clk 0:02:40.1]} 16. cxd5 {[%clk 0:00:48.6]} 16... Qb6 {[%clk
0:02:37.5]} 17. Qd3 {[%clk 0:00:48.7]} 17... Bg5 {[%clk 0:02:34.6]} 18. Rc4
{[%clk 0:00:46.8]} 18... Rc5 {[%clk 0:02:28.2]} 19. Rxc5 {[%clk 0:00:45.4]}
19... Qxc5 {[%clk 0:02:28.1]} 20. g3 {[%clk 0:00:45.9]} 20... Rc8 {[%clk
0:02:26.7]} 21. Kg2 {[%clk 0:00:46.9]} 21... Qb4 {[%clk 0:02:22]} 22. Rb1 {[%clk
0:00:46.2]} 22... Qa4 {[%clk 0:02:20.6]} 23. Qb3 {[%clk 0:00:41.8]} 23... Qxe4+
{[%clk 0:02:18.5]} 24. Bf3 {[%clk 0:00:43.1]} 24... Qc2 {[%clk 0:02:12.3]} 25.
b6 {[%clk 0:00:37]} 25... Be3 {[%clk 0:02:06.6]} 26. Qxe3 {[%clk 0:00:29.6]}
26... Qxb1 {[%clk 0:02:06.3]} 27. Bg4 {[%clk 0:00:30.6]} 27... Rd8 {[%clk
0:01:58.9]} 28. h4 {[%clk 0:00:21.1]} 28... Qb4 {[%clk 0:01:56.5]} 29. Qxe7
{[%clk 0:00:18.1]} 29... Rf8 {[%clk 0:01:56.9]} 30. Bf3 {[%clk 0:00:10.8]} 30...
Qxb6 {[%clk 0:01:56.9]} 31. h5 {[%clk 0:00:12.1]} 31... a4 {[%clk 0:01:54.3]}
32. Qf6 {[%clk 0:00:11.7]} 32... Qd8 {[%clk 0:01:53.8]} 33. Qd4 {[%clk
0:00:12.1]} 33... Qg5 {[%clk 0:01:54.4]} 34. Qxa4 {[%clk 0:00:09.8]} 34... gxh5
{[%clk 0:01:55.3]} 35. Qb4 {[%clk 0:00:11.1]} 35... h4 {[%clk 0:01:50.2]} 36.
Qxd6 {[%clk 0:00:12.1]} 36... hxg3 {[%clk 0:01:51]} 37. fxg3 {[%clk 0:00:13.5]}
37... Ra8 {[%clk 0:01:50.8]} 38. Kh3 {[%clk 0:00:10.7]} 38... Ra6 {[%clk
0:01:42.1]} 39. Qb8+ {[%clk 0:00:10.7]} 39... Kg7 {[%clk 0:01:41.5]} 40. Be4
{[%clk 0:00:05.6]} 40... Qh5+ {[%clk 0:01:36]} 41. Kg2 {[%clk 0:00:06.1]} 0-1

[Event "*** MasterClass Titled Tuesday Blitz"]
[Site "Chess.com"]
[Date "2017.07.04"]
[Round "9"]
[White "ehrenfeld"]
[Black "IMJonathanCarlstedt"]
[Result "1-0"]
[WhiteElo "2408"]
[BlackElo "2435"]
[TimeControl "180+2"]
[EndTime "15:05:43 PDT"]
[Termination "ehrenfeld won by resignation"]

1. e4 {[%clk 0:03:01.9]} 1... d6 {[%clk 0:03:00]} 2. d4 {[%clk 0:03:02.3]} 2...
Nf6 {[%clk 0:02:58.1]} 3. Nc3 {[%clk 0:03:03.1]} 3... e5 {[%clk 0:02:56.9]} 4.
Nge2 {[%clk 0:03:03.4]} 4... Nbd7 {[%clk 0:02:56.6]} 5. g3 {[%clk 0:03:03.6]}
5... Be7 {[%clk 0:02:56.9]} 6. Bg2 {[%clk 0:03:04.6]} 6... O-O {[%clk
0:02:55.7]} 7. O-O {[%clk 0:03:04.7]} 7... c6 {[%clk 0:02:56.9]} 8. a4 {[%clk
0:03:04.9]} 8... Qc7 {[%clk 0:02:57.5]} 9. h3 {[%clk 0:03:04.7]} 9... Re8 {[%clk
0:02:57.7]} 10. Be3 {[%clk 0:02:58.5]} 10... Nf8 {[%clk 0:02:56.7]} 11. Qd2
{[%clk 0:02:50.9]} 11... a6 {[%clk 0:02:57.6]} 12. a5 {[%clk 0:02:51.3]} 12...
exd4 {[%clk 0:02:57.9]} 13. Bxd4 {[%clk 0:02:49.8]} 13... Be6 {[%clk 0:02:57.2]}
14. Nf4 {[%clk 0:02:44.6]} 14... Bc4 {[%clk 0:02:55.1]} 15. Rfe1 {[%clk
0:02:44.1]} 15... Ne6 {[%clk 0:02:56]} 16. Nxe6 {[%clk 0:02:37.6]} 16... Bxe6
{[%clk 0:02:56]} 17. e5 {[%clk 0:02:34.1]} 17... dxe5 {[%clk 0:02:56.7]} 18.
Bxe5 {[%clk 0:02:34.9]} 18... Rad8 {[%clk 0:02:57.4]} 19. Qc1 {[%clk 0:02:13.7]}
19... Bd6 {[%clk 0:02:56.5]} 20. Bxf6 {[%clk 0:02:13]} 20... gxf6 {[%clk
0:02:57.1]} 21. Qh6 {[%clk 0:02:11.8]} 21... Be5 {[%clk 0:02:57.2]} 22. Ne4
{[%clk 0:02:11.7]} 22... Qe7 {[%clk 0:02:49.2]} 23. Ng5 {[%clk 0:02:06.5]} 23...
fxg5 {[%clk 0:02:39.9]} 24. Rxe5 {[%clk 0:02:05.6]} 24... f6 {[%clk 0:02:41.3]}
25. Re2 {[%clk 0:02:01.3]} 25... Qg7 {[%clk 0:02:39.4]} 26. Qh5 {[%clk
0:01:54.8]} 26... Qf7 {[%clk 0:02:37.1]} 27. Qf3 {[%clk 0:01:48.9]} 27... Bd5
{[%clk 0:02:37.1]} 28. Rxe8+ {[%clk 0:01:48.5]} 28... Rxe8 {[%clk 0:02:38.4]}
29. Qc3 {[%clk 0:01:49.5]} 29... Bxg2 {[%clk 0:02:34.5]} 30. Kxg2 {[%clk
0:01:50.5]} 30... Qd5+ {[%clk 0:02:35.1]} 31. Kg1 {[%clk 0:01:31.7]} 31... Kf7
{[%clk 0:02:35.8]} 32. Re1 {[%clk 0:01:30.2]} 32... Re6 {[%clk 0:02:34.4]} 33.
Rxe6 {[%clk 0:01:30.2]} 33... Kxe6 {[%clk 0:02:34.7]} 34. Qe3+ {[%clk
0:01:28.6]} 34... Kd7 {[%clk 0:02:28.1]} 35. Qb6 {[%clk 0:01:24.5]} 35... Qd1+
{[%clk 0:02:23.3]} 36. Kh2 {[%clk 0:01:24.8]} 36... Qxc2 {[%clk 0:02:23.6]} 37.
Qxb7+ {[%clk 0:01:25.2]} 37... Ke6 {[%clk 0:02:24.4]} 38. Qb6 {[%clk 0:01:20.8]}
38... Kd5 {[%clk 0:02:22.9]} 39. b4 {[%clk 0:01:20.8]} 39... c5 {[%clk
0:02:19.2]} 40. Qd8+ {[%clk 0:01:16.1]} 40... Kc4 {[%clk 0:02:17.8]} 41. Qxf6
{[%clk 0:01:14.3]} 41... cxb4 {[%clk 0:02:18.7]} 42. Qxa6+ {[%clk 0:01:14.1]}
42... Kb3 {[%clk 0:02:17]} 43. Qe6+ {[%clk 0:01:14.2]} 43... Ka4 {[%clk
0:02:17.6]} 44. a6 {[%clk 0:01:11.4]} 44... Qxf2+ {[%clk 0:02:17.4]} 45. Kh1
{[%clk 0:01:12.5]} 45... b3 {[%clk 0:02:18.2]} 46. Qd7+ {[%clk 0:01:08.9]} 46...
Ka3 {[%clk 0:02:08.5]} 47. a7 {[%clk 0:01:09.9]} 47... Qf3+ {[%clk 0:02:04.7]}
48. Kh2 {[%clk 0:01:10.4]} 48... b2 {[%clk 0:02:05.1]} 49. Qd6+ {[%clk
0:01:05.6]} 49... Kb3 {[%clk 0:02:05.4]} 50. Qb8+ {[%clk 0:01:03.8]} 50... Kc2
{[%clk 0:01:59.3]} 51. a8=Q {[%clk 0:01:04]} 51... Qxa8 {[%clk 0:01:21.7]} 52.
Qxa8 {[%clk 0:01:04.2]} 52... b1=Q {[%clk 0:01:21.8]} 53. Qe4+ {[%clk
0:01:04.6]} 53... Kb2 {[%clk 0:01:22.6]} 54. Qxb1+ {[%clk 0:01:05.2]} 54... Kxb1
{[%clk 0:01:24]} 55. Kg2 {[%clk 0:01:06.2]} 55... Kc2 {[%clk 0:01:25.4]} 56. Kf3
{[%clk 0:01:07.1]} 56... Kd3 {[%clk 0:01:26.7]} 57. Kg4 {[%clk 0:01:07.2]} 57...
h6 {[%clk 0:01:27.8]} 58. Kh5 {[%clk 0:01:08]} 58... Ke3 {[%clk 0:01:28.3]} 1-0

[Event "*** MasterClass Titled Tuesday Blitz"]
[Site "Chess.com"]
[Date "2017.07.04"]
[Round "9"]
[White "Schemato"]
[Black "grobesk"]
[Result "1-0"]
[WhiteElo "2288"]
[BlackElo "2209"]
[TimeControl "180+2"]
[EndTime "15:05:46 PDT"]
[Termination "Schemato won on time"]

1. c4 {[%clk 0:03:01.9]} 1... e5 {[%clk 0:02:59.6]} 2. g3 {[%clk 0:03:02.6]}
2... Nc6 {[%clk 0:03:04.4]} 3. Nc3 {[%clk 0:03:02.9]} 3... Bc5 {[%clk 0:03:06]}
4. Bg2 {[%clk 0:03:03.8]} 4... a6 {[%clk 0:03:06.5]} 5. e3 {[%clk 0:03:04.3]}
5... d6 {[%clk 0:03:07.1]} 6. Nge2 {[%clk 0:03:05.3]} 6... Ba7 {[%clk
0:03:07.9]} 7. O-O {[%clk 0:03:05.7]} 7... h5 {[%clk 0:03:07.7]} 8. h3 {[%clk
0:03:06.4]} 8... h4 {[%clk 0:03:07.1]} 9. g4 {[%clk 0:03:07.6]} 9... f5 {[%clk
0:03:07.9]} 10. gxf5 {[%clk 0:03:07.5]} 10... Bxf5 {[%clk 0:03:07.7]} 11. d4
{[%clk 0:03:05.4]} 11... Nge7 {[%clk 0:03:02.1]} 12. b3 {[%clk 0:02:53.1]} 12...
Rg8 {[%clk 0:02:04.7]} 13. Kh2 {[%clk 0:02:41.8]} 13... g5 {[%clk 0:01:43.3]}
14. dxe5 {[%clk 0:02:36.1]} 14... dxe5 {[%clk 0:01:40.1]} 15. Bb2 {[%clk
0:02:24.9]} 15... g4 {[%clk 0:01:30.4]} 16. Qxd8+ {[%clk 0:02:15.3]} 16... Rxd8
{[%clk 0:01:28.9]} 17. Rad1 {[%clk 0:02:05.4]} 17... gxh3 {[%clk 0:01:21.1]} 18.
Bxh3 {[%clk 0:02:04.2]} 18... Bxh3 {[%clk 0:01:20.3]} 19. Kxh3 {[%clk
0:02:05.3]} 19... Kf7 {[%clk 0:00:42.1]} 20. Nd5 {[%clk 0:01:59.3]} 20... Nxd5
{[%clk 0:00:34]} 21. cxd5 {[%clk 0:02:00]} 21... Nb4 {[%clk 0:00:32.2]} 22. e4
{[%clk 0:01:39.4]} 22... c6 {[%clk 0:00:23.2]} 23. a3 {[%clk 0:01:36.5]} 23...
Nc2 {[%clk 0:00:13.9]} 24. Bxe5 {[%clk 0:01:33.3]} 24... cxd5 {[%clk 0:00:14.7]}
25. exd5 {[%clk 0:01:28.7]} 25... Nxa3 {[%clk 0:00:14.8]} 26. f4 {[%clk
0:01:29]} 26... Nc2 {[%clk 0:00:09]} 27. Nd4 {[%clk 0:01:21.7]} 27... Ne3 {[%clk
0:00:08.7]} 28. Ne6 {[%clk 0:01:19.4]} 28... Rxd5 {[%clk 0:00:05.2]} 29. Rxd5
{[%clk 0:01:16.1]} 29... Nxd5 {[%clk 0:00:07.1]} 30. Ng5+ {[%clk 0:01:16.3]}
30... Ke7 {[%clk 0:00:06.7]} 31. Kxh4 {[%clk 0:01:13.7]} 31... Be3 {[%clk
0:00:04.5]} 32. Rf3 {[%clk 0:01:03.8]} 32... Bc1 {[%clk 0:00:03.1]} 33. Kg4
{[%clk 0:01:02]} 33... b5 {[%clk 0:00:02.9]} 34. Rd3 {[%clk 0:00:58.8]} 34...
Ne3+ {[%clk 0:00:03.4]} 35. Kf3 {[%clk 0:00:57.4]} 35... Nf5 {[%clk 0:00:03.9]}
36. Ke4 {[%clk 0:00:56.1]} 1-0

[Event "*** MasterClass Titled Tuesday Blitz"]
[Site "Chess.com"]
[Date "2017.07.04"]
[Round "9"]
[White "Vamostodorecto"]
[Black "Al_Shima"]
[Result "0-1"]
[WhiteElo "2332"]
[BlackElo "2360"]
[TimeControl "180+2"]
[EndTime "15:05:50 PDT"]
[Termination "Al_Shima won by checkmate"]

1. d4 {[%clk 0:03:01.9]} 1... Nf6 {[%clk 0:03:00.2]} 2. c4 {[%clk 0:03:01.4]}
2... e6 {[%clk 0:03:00.3]} 3. Nc3 {[%clk 0:03:02.9]} 3... Bb4 {[%clk 0:03:00.6]}
4. a3 {[%clk 0:03:04.1]} 4... Bxc3+ {[%clk 0:03:01.6]} 5. bxc3 {[%clk 0:03:06]}
5... O-O {[%clk 0:03:02]} 6. f3 {[%clk 0:03:06.1]} 6... d5 {[%clk 0:03:02.5]} 7.
cxd5 {[%clk 0:03:06.7]} 7... exd5 {[%clk 0:03:04.4]} 8. e3 {[%clk 0:03:07.8]}
8... c5 {[%clk 0:03:01.7]} 9. Bd3 {[%clk 0:03:09.3]} 9... Nc6 {[%clk 0:03:02.1]}
10. Ne2 {[%clk 0:03:10.2]} 10... b6 {[%clk 0:02:59.6]} 11. O-O {[%clk
0:03:10.7]} 11... Bb7 {[%clk 0:02:57.1]} 12. Ng3 {[%clk 0:03:11]} 12... Ne7
{[%clk 0:02:55.1]} 13. Ra2 {[%clk 0:03:11.4]} 13... Qd7 {[%clk 0:02:55.7]} 14.
Re2 {[%clk 0:03:11.8]} 14... Rad8 {[%clk 0:02:56]} 15. Bb2 {[%clk 0:03:12.4]}
15... Rfe8 {[%clk 0:02:56.6]} 16. e4 {[%clk 0:03:05.7]} 16... dxe4 {[%clk
0:02:39.8]} 17. fxe4 {[%clk 0:03:07.6]} 17... cxd4 {[%clk 0:02:41]} 18. cxd4
{[%clk 0:03:08.5]} 18... Nc6 {[%clk 0:02:41.5]} 19. Bb5 {[%clk 0:02:52.9]} 19...
a6 {[%clk 0:02:39]} 20. Bxc6 {[%clk 0:02:50.9]} 20... Bxc6 {[%clk 0:02:39.9]}
21. d5 {[%clk 0:02:41]} 21... Bb5 {[%clk 0:02:40.6]} 22. Rxf6 {[%clk 0:02:33.7]}
22... Bxe2 {[%clk 0:02:26.9]} 23. Qd4 {[%clk 0:02:17]} 23... Bb5 {[%clk
0:02:08.5]} 24. Nf5 {[%clk 0:01:37.9]} 24... Re6 {[%clk 0:01:23.3]} 25. Nh6+
{[%clk 0:00:38.5]} 25... gxh6 {[%clk 0:01:01.7]} 26. Rg6+ {[%clk 0:00:27.2]}
26... fxg6 {[%clk 0:00:33.2]} 27. Qh8+ {[%clk 0:00:25.7]} 27... Kf7 {[%clk
0:00:33.9]} 28. Qxh7+ {[%clk 0:00:20.5]} 28... Ke8 {[%clk 0:00:34.7]} 29. Qg8+
{[%clk 0:00:17.3]} 29... Ke7 {[%clk 0:00:35.8]} 30. Qg7+ {[%clk 0:00:05]} 30...
Kd6 {[%clk 0:00:36.8]} 31. Qd4 {[%clk 0:00:05]} 31... Rxe4 {[%clk 0:00:34.7]}
32. Qxe4 {[%clk 0:00:04.2]} 32... Qf5 {[%clk 0:00:35.3]} 33. Qd4 {[%clk
0:00:02.7]} 33... Qf1# {[%clk 0:00:35.2]} 0-1

[Event "*** MasterClass Titled Tuesday Blitz"]
[Site "Chess.com"]
[Date "2017.07.04"]
[Round "9"]
[White "MarshKnight"]
[Black "Bad4life"]
[Result "1-0"]
[WhiteElo "2160"]
[BlackElo "2259"]
[TimeControl "180+2"]
[EndTime "15:05:59 PDT"]
[Termination "MarshKnight won by checkmate"]

1. e4 {[%clk 0:03:00]} 1... c5 {[%clk 0:03:00.8]} 2. Nf3 {[%clk 0:03:01.4]} 2...
d6 {[%clk 0:03:01.3]} 3. d4 {[%clk 0:03:02.9]} 3... cxd4 {[%clk 0:03:03.2]} 4.
Nxd4 {[%clk 0:03:04.5]} 4... Nf6 {[%clk 0:03:04.1]} 5. Nc3 {[%clk 0:03:06.1]}
5... g6 {[%clk 0:03:05.4]} 6. Be3 {[%clk 0:03:06.6]} 6... Bg7 {[%clk 0:03:06.7]}
7. f3 {[%clk 0:03:08.2]} 7... O-O {[%clk 0:03:08.2]} 8. Qd2 {[%clk 0:03:09.8]}
8... Nc6 {[%clk 0:03:08.7]} 9. Bc4 {[%clk 0:03:10.7]} 9... Bd7 {[%clk 0:03:10]}
10. O-O-O {[%clk 0:03:10.7]} 10... Rc8 {[%clk 0:03:11.5]} 11. Bb3 {[%clk
0:03:12.2]} 11... Ne5 {[%clk 0:03:13.1]} 12. Kb1 {[%clk 0:03:13.3]} 12... Nc4
{[%clk 0:03:14.4]} 13. Bxc4 {[%clk 0:03:14.7]} 13... Rxc4 {[%clk 0:03:15.4]} 14.
g4 {[%clk 0:03:14.2]} 14... b5 {[%clk 0:03:16.6]} 15. b3 {[%clk 0:03:08.6]}
15... b4 {[%clk 0:03:17.8]} 16. bxc4 {[%clk 0:03:10]} 16... bxc3 {[%clk
0:03:19.1]} 17. Qxc3 {[%clk 0:03:11.6]} 17... Qc7 {[%clk 0:03:20.7]} 18. h4
{[%clk 0:02:55.6]} 18... h5 {[%clk 0:03:19.9]} 19. g5 {[%clk 0:02:47.5]} 19...
Nh7 {[%clk 0:03:20.7]} 20. Qd3 {[%clk 0:02:29.8]} 20... Rc8 {[%clk 0:03:17.3]}
21. Kc1 {[%clk 0:02:26.5]} 21... Qa5 {[%clk 0:03:12.6]} 22. Nb3 {[%clk
0:02:19.8]} 22... Qxa2 {[%clk 0:03:00.7]} 23. Bd4 {[%clk 0:02:19]} 23... Qa3+
{[%clk 0:02:55.8]} 24. Kd2 {[%clk 0:02:15.8]} 24... Be6 {[%clk 0:02:55.2]} 25.
Bxg7 {[%clk 0:02:02.8]} 25... Kxg7 {[%clk 0:02:56]} 26. Qc3+ {[%clk 0:00:53.5]}
26... f6 {[%clk 0:02:17]} 27. Ra1 {[%clk 0:00:54.2]} 27... Rxc4 {[%clk
0:01:10.7]} 28. Rxa3 {[%clk 0:00:54.6]} 28... Rxc3 {[%clk 0:01:12.3]} 29. Kxc3
{[%clk 0:00:55.5]} 29... fxg5 {[%clk 0:01:14.2]} 30. Rxa7 {[%clk 0:00:47.8]}
30... Kf7 {[%clk 0:01:14.4]} 31. Nd4 {[%clk 0:00:43.2]} 31... g4 {[%clk
0:01:09.8]} 32. Nxe6 {[%clk 0:00:38.6]} 32... Kxe6 {[%clk 0:01:11.2]} 33. fxg4
{[%clk 0:00:40.2]} 33... hxg4 {[%clk 0:01:12.7]} 34. h5 {[%clk 0:00:41.4]} 34...
gxh5 {[%clk 0:01:12.5]} 35. Rxh5 {[%clk 0:00:42.4]} 35... Nf6 {[%clk 0:01:14.1]}
36. Rh6 {[%clk 0:00:38.6]} 36... g3 {[%clk 0:01:15]} 37. Rxf6+ {[%clk 0:00:36]}
37... Kxf6 {[%clk 0:01:15]} 38. Kd3 {[%clk 0:00:36.9]} 38... g2 {[%clk
0:00:58.3]} 39. Ra1 {[%clk 0:00:36.6]} 39... Ke5 {[%clk 0:00:58.8]} 40. Rg1
{[%clk 0:00:36.2]} 40... d5 {[%clk 0:01:00.4]} 41. exd5 {[%clk 0:00:36.6]} 41...
Kxd5 {[%clk 0:01:02.3]} 42. Rxg2 {[%clk 0:00:38.2]} 42... e5 {[%clk 0:01:03.9]}
43. c4+ {[%clk 0:00:36.8]} 43... Kc5 {[%clk 0:01:05]} 44. Ke4 {[%clk 0:00:37.9]}
44... Kxc4 {[%clk 0:01:06.2]} 45. Rc2+ {[%clk 0:00:38.5]} 45... Kb3 {[%clk
0:01:07.1]} 46. Rc8 {[%clk 0:00:39.6]} 46... Kb4 {[%clk 0:01:08.3]} 47. Kxe5
{[%clk 0:00:40.7]} 47... Kb5 {[%clk 0:01:10.2]} 48. Kd6 {[%clk 0:00:41.9]} 48...
Kb6 {[%clk 0:01:12.1]} 49. Rb8+ {[%clk 0:00:43]} 49... Ka5 {[%clk 0:01:13.7]}
50. Kc6 {[%clk 0:00:41.5]} 50... Ka4 {[%clk 0:01:15.6]} 51. Kc5 {[%clk
0:00:41.8]} 51... Ka3 {[%clk 0:01:17.5]} 52. Kc4 {[%clk 0:00:43.2]} 52... Ka4
{[%clk 0:01:19.1]} 53. Ra8# {[%clk 0:00:43.8]} 1-0

[Event "*** MasterClass Titled Tuesday Blitz"]
[Site "Chess.com"]
[Date "2017.07.04"]
[Round "9"]
[White "playablecharacter"]
[Black "BigMak2500"]
[Result "1-0"]
[WhiteElo "2047"]
[BlackElo "2391"]
[TimeControl "180+2"]
[EndTime "15:06:04 PDT"]
[Termination "playablecharacter won by resignation"]

1. d4 {[%clk 0:03:01.9]} 1... Nf6 {[%clk 0:02:58.7]} 2. c4 {[%clk 0:03:01.7]}
2... e6 {[%clk 0:02:59.8]} 3. Nc3 {[%clk 0:03:01.5]} 3... Bb4 {[%clk 0:02:59.4]}
4. Qc2 {[%clk 0:03:02.6]} 4... c5 {[%clk 0:02:59.2]} 5. dxc5 {[%clk 0:02:51.4]}
5... O-O {[%clk 0:02:59.7]} 6. Nf3 {[%clk 0:02:50.7]} 6... Na6 {[%clk
0:03:00.1]} 7. Bd2 {[%clk 0:02:48.4]} 7... Nxc5 {[%clk 0:02:58.7]} 8. a3 {[%clk
0:02:47.5]} 8... Bxc3 {[%clk 0:02:59.1]} 9. Bxc3 {[%clk 0:02:49.4]} 9... Nce4
{[%clk 0:02:57.9]} 10. Bxf6 {[%clk 0:02:48.7]} 10... Qxf6 {[%clk 0:02:59.8]} 11.
Qxe4 {[%clk 0:02:32.4]} 11... Qxb2 {[%clk 0:02:59.8]} 12. Rd1 {[%clk 0:02:25]}
12... Qxa3 {[%clk 0:01:43.9]} 13. e3 {[%clk 0:02:20]} 13... Qc3+ {[%clk
0:01:01.9]} 14. Nd2 {[%clk 0:02:20.6]} 14... a5 {[%clk 0:01:00.5]} 15. Bd3
{[%clk 0:02:19.6]} 15... f5 {[%clk 0:00:57.5]} 16. Qd4 {[%clk 0:02:20.8]} 16...
Qxd4 {[%clk 0:00:55.6]} 17. exd4 {[%clk 0:02:22.7]} 17... d6 {[%clk 0:00:54.1]}
18. O-O {[%clk 0:02:22.4]} 18... a4 {[%clk 0:00:51.5]} 19. Ra1 {[%clk
0:02:22.3]} 19... Bd7 {[%clk 0:00:49.3]} 20. Rfb1 {[%clk 0:02:20]} 20... Bc6
{[%clk 0:00:46.9]} 21. Be2 {[%clk 0:02:12.1]} 21... Kf7 {[%clk 0:00:37.5]} 22.
Bf3 {[%clk 0:02:09.5]} 22... d5 {[%clk 0:00:32.4]} 23. cxd5 {[%clk 0:02:08.9]}
23... exd5 {[%clk 0:00:31.9]} 24. Ra3 {[%clk 0:02:04.3]} 24... Rfe8 {[%clk
0:00:29]} 25. Kf1 {[%clk 0:02:05.5]} 25... Re6 {[%clk 0:00:26.1]} 26. Re1 {[%clk
0:02:05.8]} 26... Bb5+ {[%clk 0:00:21.6]} 27. Be2 {[%clk 0:02:04.6]} 27... Bxe2+
{[%clk 0:00:18.4]} 28. Rxe2 {[%clk 0:02:04.7]} 28... b5 {[%clk 0:00:19.5]} 29.
Rxe6 {[%clk 0:01:38.9]} 29... Kxe6 {[%clk 0:00:21.4]} 30. Nb3 {[%clk 0:01:40.3]}
30... Re8 {[%clk 0:00:16.9]} 31. Nc5+ {[%clk 0:01:40.3]} 31... Kd6 {[%clk
0:00:17.1]} 32. Re3 {[%clk 0:01:39.5]} 32... Rxe3 {[%clk 0:00:14.9]} 33. fxe3
{[%clk 0:01:40.7]} 33... a3 {[%clk 0:00:15]} 34. Ke2 {[%clk 0:01:41.9]} 34... a2
{[%clk 0:00:12.4]} 35. Nb3 {[%clk 0:01:43.5]} 35... Kc6 {[%clk 0:00:09.8]} 36.
Kd3 {[%clk 0:01:39]} 36... b4 {[%clk 0:00:08.8]} 37. Kc2 {[%clk 0:01:30.2]}
37... Kb5 {[%clk 0:00:08.8]} 38. h3 {[%clk 0:01:27.6]} 38... Kc4 {[%clk
0:00:07.7]} 39. Nd2+ {[%clk 0:01:27.4]} 39... Kb5 {[%clk 0:00:07.9]} 40. Kb2
{[%clk 0:01:28.6]} 40... g5 {[%clk 0:00:06.5]} 41. Kxa2 {[%clk 0:01:28.9]} 41...
h5 {[%clk 0:00:06.5]} 42. Kb3 {[%clk 0:01:29.7]} 42... g4 {[%clk 0:00:07]} 43.
hxg4 {[%clk 0:01:31]} 43... fxg4 {[%clk 0:00:08.9]} 44. Nf1 {[%clk 0:01:25.2]}
44... h4 {[%clk 0:00:09.7]} 45. Nh2 {[%clk 0:01:23.8]} 45... h3 {[%clk
0:00:08.8]} 46. g3 {[%clk 0:01:23]} 46... Ka5 {[%clk 0:00:08.3]} 47. Nxg4 {[%clk
0:01:24.1]} 47... Kb5 {[%clk 0:00:08.7]} 48. Nh2 {[%clk 0:01:25.3]} 48... Kc6
{[%clk 0:00:10.6]} 49. Kxb4 {[%clk 0:01:26.5]} 49... Kd6 {[%clk 0:00:12.5]} 1-0

[Event "*** MasterClass Titled Tuesday Blitz"]
[Site "Chess.com"]
[Date "2017.07.04"]
[Round "9"]
[White "JeffReinberg"]
[Black "KNVB"]
[Result "1-0"]
[WhiteElo "2629"]
[BlackElo "2479"]
[TimeControl "180+2"]
[EndTime "15:06:17 PDT"]
[Termination "JeffReinberg won on time"]

1. e4 {[%clk 0:03:01.7]} 1... e6 {[%clk 0:02:47.4]} 2. Nc3 {[%clk 0:03:00.3]}
2... d5 {[%clk 0:02:46.8]} 3. d3 {[%clk 0:03:01.2]} 3... c5 {[%clk 0:02:40.6]}
4. g3 {[%clk 0:03:01.6]} 4... Nf6 {[%clk 0:02:05.4]} 5. Bg2 {[%clk 0:02:56.2]}
5... Nc6 {[%clk 0:01:57.6]} 6. f4 {[%clk 0:02:56.4]} 6... dxe4 {[%clk
0:01:50.7]} 7. Nxe4 {[%clk 0:02:57]} 7... Nxe4 {[%clk 0:01:51.9]} 8. dxe4 {[%clk
0:02:57.3]} 8... Qxd1+ {[%clk 0:01:46.6]} 9. Kxd1 {[%clk 0:02:59.2]} 9... b6
{[%clk 0:01:27.5]} 10. c3 {[%clk 0:02:40.9]} 10... Ba6 {[%clk 0:01:26]} 11. Kc2
{[%clk 0:02:37.7]} 11... O-O-O {[%clk 0:01:26.2]} 12. b3 {[%clk 0:02:38.7]}
12... Bd3+ {[%clk 0:01:21.4]} 13. Kb2 {[%clk 0:02:37.9]} 13... Be7 {[%clk
0:00:47.5]} 14. Nh3 {[%clk 0:02:38.2]} 14... Kc7 {[%clk 0:00:42.5]} 15. Nf2
{[%clk 0:02:37.8]} 15... Ba6 {[%clk 0:00:39.4]} 16. Be3 {[%clk 0:02:38.4]} 16...
h5 {[%clk 0:00:36.2]} 17. Rad1 {[%clk 0:02:29.6]} 17... Rxd1 {[%clk 0:00:31.3]}
18. Rxd1 {[%clk 0:02:31.5]} 18... Rd8 {[%clk 0:00:29.6]} 19. Rg1 {[%clk
0:02:15.5]} 19... g6 {[%clk 0:00:28.7]} 20. e5 {[%clk 0:02:13.2]} 20... c4
{[%clk 0:00:19.3]} 21. b4 {[%clk 0:02:10.4]} 21... Bb5 {[%clk 0:00:18.9]} 22.
Rd1 {[%clk 0:01:59.2]} 22... Rxd1 {[%clk 0:00:16.1]} 23. Nxd1 {[%clk 0:02:01.1]}
23... a5 {[%clk 0:00:17.1]} 24. a3 {[%clk 0:01:58.9]} 24... axb4 {[%clk
0:00:13.7]} 25. axb4 {[%clk 0:02:00.8]} 25... Ba4 {[%clk 0:00:14.7]} 26. Nf2
{[%clk 0:01:58.2]} 26... Na7 {[%clk 0:00:14.3]} 27. Bf1 {[%clk 0:01:52.6]} 27...
Bb5 {[%clk 0:00:12.8]} 28. Ne4 {[%clk 0:01:49.3]} 28... Nc6 {[%clk 0:00:06.6]}
29. Nd2 {[%clk 0:01:50.2]} 29... Bd8 {[%clk 0:00:06]} 30. Bxc4 {[%clk
0:01:45.3]} 30... Bxc4 {[%clk 0:00:06.8]} 31. Nxc4 {[%clk 0:01:47.2]} 31... Kb7
{[%clk 0:00:02]} 32. Nd6+ {[%clk 0:01:45.6]} 32... Ka6 {[%clk 0:00:03.1]} 33.
Nxf7 {[%clk 0:01:47.5]} 33... Be7 {[%clk 0:00:04.2]} 34. Kb3 {[%clk 0:01:37.1]}
34... b5 {[%clk 0:00:03.9]} 35. Nh8 {[%clk 0:01:34.7]} 35... g5 {[%clk 0:00:05]}
36. Nf7 {[%clk 0:01:28.2]} 36... g4 {[%clk 0:00:03.1]} 37. Bc5 {[%clk
0:01:23.2]} 37... Bd8 {[%clk 0:00:02.9]} 38. Nxd8 {[%clk 0:01:23.1]} 38... Nxd8
{[%clk 0:00:04.8]} 39. c4 {[%clk 0:01:23]} 39... Nf7 {[%clk 0:00:05.5]} 40. Bf8
{[%clk 0:01:08.4]} 40... Kb6 {[%clk 0:00:05.5]} 41. f5 {[%clk 0:01:04.6]} 41...
bxc4+ {[%clk 0:00:04.9]} 42. Kc3 {[%clk 0:00:58.2]} 42... Nxe5 {[%clk
0:00:04.7]} 43. fxe6 {[%clk 0:00:56.1]} 43... Nc6 {[%clk 0:00:02.8]} 44. e7
{[%clk 0:00:49.7]} 1-0